[Event "*** Titled Tuesday Blitz"]
[Site "Chess.com"]
[Date "2020.11.24"]
[Round "2"]
[White "Zajdanek"]
[Black "korbul"]
[Result "1-0"]
[WhiteElo "2328"]
[BlackElo "2554"]
[TimeControl "180+1"]
[EndTime "10:33:28 PST"]
[Termination "Zajdanek won by resignation"]

1. e4 {[%clk 0:02:59.1]} 1... c5 {[%clk 0:02:59.4]} 2. Nf3 {[%clk 0:02:59]} 2...
e6 {[%clk 0:02:59.4]} 3. b3 {[%clk 0:02:58]} 3... b6 {[%clk 0:02:59]} 4. Bb2
{[%clk 0:02:58.3]} 4... Bb7 {[%clk 0:02:59.2]} 5. Bd3 {[%clk 0:02:58.3]} 5...
Nf6 {[%clk 0:02:56.8]} 6. e5 {[%clk 0:02:58.3]} 6... Nd5 {[%clk 0:02:56.5]} 7.
O-O {[%clk 0:02:58]} 7... Nc6 {[%clk 0:02:55.1]} 8. a3 {[%clk 0:02:58]} 8... f5
{[%clk 0:02:50]} 9. exf6 {[%clk 0:02:57.2]} 9... Nxf6 {[%clk 0:02:49.6]} 10. Nc3
{[%clk 0:02:55.1]} 10... Be7 {[%clk 0:02:48.7]} 11. Ne4 {[%clk 0:02:51.9]} 11...
O-O {[%clk 0:02:47.8]} 12. Qe2 {[%clk 0:02:49.8]} 12... Qc7 {[%clk 0:02:30.2]}
13. Rae1 {[%clk 0:02:41.2]} 13... Rae8 {[%clk 0:02:28.3]} 14. Nxf6+ {[%clk
0:02:33.1]} 14... Bxf6 {[%clk 0:02:28]} 15. Bxf6 {[%clk 0:02:32.9]} 15... Rxf6
{[%clk 0:02:26]} 16. Qe4 {[%clk 0:02:33.3]} 16... g6 {[%clk 0:02:23.7]} 17. Qh4
{[%clk 0:02:33.4]} 17... Ref8 {[%clk 0:02:21.1]} 18. Ng5 {[%clk 0:02:31.8]}
18... h5 {[%clk 0:02:10.2]} 19. f4 {[%clk 0:02:30.7]} 19... Nd4 {[%clk
0:02:08.4]} 20. Ne4 {[%clk 0:02:19.1]} 20... Rxf4 {[%clk 0:02:00.4]} 21. Qg5
{[%clk 0:02:08.8]} 21... Rxf1+ {[%clk 0:01:34.1]} 22. Bxf1 {[%clk 0:02:01.4]}
22... d5 {[%clk 0:01:19.7]} 23. Nf6+ {[%clk 0:01:45.2]} 23... Rxf6 {[%clk
0:01:10.1]} 24. Qxf6 {[%clk 0:01:45]} 24... Qf7 {[%clk 0:01:10.5]} 25. Qd8+
{[%clk 0:01:32.9]} 25... Kg7 {[%clk 0:01:08.6]} 26. Bd3 {[%clk 0:01:29.7]} 26...
Nc6 {[%clk 0:00:50.7]} 27. Qd6 {[%clk 0:01:19.4]} 27... Nd4 {[%clk 0:00:39.9]}
28. Rf1 {[%clk 0:01:15.1]} 28... Nf5 {[%clk 0:00:39.8]} 29. Bxf5 {[%clk
0:01:03.3]} 29... gxf5 {[%clk 0:00:39.7]} 30. Re1 {[%clk 0:00:57.7]} 30... Bc8
{[%clk 0:00:28.2]} 31. Qb8 {[%clk 0:00:49.8]} 31... d4 {[%clk 0:00:19.5]} 32.
Qxc8 {[%clk 0:00:45.3]} 32... Kf6 {[%clk 0:00:18.6]} 33. Qd8+ {[%clk 0:00:40.3]}
33... Kg6 {[%clk 0:00:18.8]} 34. h4 {[%clk 0:00:36.8]} 34... c4 {[%clk
0:00:18.1]} 35. Qg5+ {[%clk 0:00:35.8]} 35... Kh7 {[%clk 0:00:17.7]} 36. bxc4
{[%clk 0:00:35.1]} 36... d3 {[%clk 0:00:17.9]} 37. cxd3 {[%clk 0:00:35.1]} 37...
Qd7 {[%clk 0:00:17.9]} 38. Re3 {[%clk 0:00:30.8]} 38... Qd4 {[%clk 0:00:17]} 39.
Qe7+ {[%clk 0:00:29.6]} 39... Kh8 {[%clk 0:00:16.3]} 40. Qxe6 {[%clk 0:00:27.3]}
40... Qg4 {[%clk 0:00:15.4]} 41. Qf6+ {[%clk 0:00:25]} 41... Kg8 {[%clk
0:00:14.8]} 42. Re8+ {[%clk 0:00:23.8]} 1-0

[Event "*** Titled Tuesday Blitz"]
[Site "Chess.com"]
[Date "2020.11.24"]
[Round "2"]
[White "margarita_2703"]
[Black "ZenBull"]
[Result "1-0"]
[WhiteElo "2410"]
[BlackElo "2112"]
[TimeControl "180+1"]
[EndTime "10:33:29 PST"]
[Termination "margarita_2703 won on time"]

1. Nf3 {[%clk 0:02:52.5]} 1... Nf6 {[%clk 0:02:59.8]} 2. d4 {[%clk 0:02:51.3]}
2... e6 {[%clk 0:03:00.1]} 3. b3 {[%clk 0:02:47.9]} 3... Be7 {[%clk 0:02:58.9]}
4. Bb2 {[%clk 0:02:48.2]} 4... O-O {[%clk 0:02:59.4]} 5. Nbd2 {[%clk 0:02:48.1]}
5... b6 {[%clk 0:02:59.6]} 6. e4 {[%clk 0:02:47.9]} 6... d6 {[%clk 0:02:58.8]}
7. Bd3 {[%clk 0:02:47.6]} 7... Bb7 {[%clk 0:02:59]} 8. O-O {[%clk 0:02:47.5]}
8... Nbd7 {[%clk 0:02:58.5]} 9. Qe2 {[%clk 0:02:46.9]} 9... c5 {[%clk
0:02:47.3]} 10. c4 {[%clk 0:02:44]} 10... cxd4 {[%clk 0:02:45.6]} 11. Nxd4
{[%clk 0:02:41.2]} 11... Rc8 {[%clk 0:02:35.3]} 12. f4 {[%clk 0:02:35.8]} 12...
Qc7 {[%clk 0:02:33.4]} 13. Kh1 {[%clk 0:02:25.7]} 13... Qb8 {[%clk 0:01:55.4]}
14. Rf3 {[%clk 0:01:53.7]} 14... Rfd8 {[%clk 0:01:53.1]} 15. Rh3 {[%clk
0:01:51.6]} 15... Nf8 {[%clk 0:01:52.7]} 16. e5 {[%clk 0:01:40]} 16... dxe5
{[%clk 0:01:46.2]} 17. fxe5 {[%clk 0:01:38.2]} 17... Ne8 {[%clk 0:01:39.6]} 18.
Rf1 {[%clk 0:01:34]} 18... Bc5 {[%clk 0:01:23.6]} 19. Bxh7+ {[%clk 0:01:18.9]}
19... Nxh7 {[%clk 0:01:20.7]} 20. Qh5 {[%clk 0:01:18.5]} 20... Rd7 {[%clk
0:00:16.1]} 21. Qxh7+ {[%clk 0:00:45.9]} 21... Kf8 {[%clk 0:00:16.5]} 22. Nxe6+
{[%clk 0:00:33.7]} 22... Ke7 {[%clk 0:00:16.1]} 23. Nf3 {[%clk 0:00:22.4]} 23...
Bxf3 {[%clk 0:00:15.3]} 24. Rhxf3 {[%clk 0:00:19.2]} 24... fxe6 {[%clk
0:00:14.6]} 25. Qh4+ {[%clk 0:00:16.8]} 25... Nf6 {[%clk 0:00:11]} 26. exf6+
{[%clk 0:00:16.7]} 26... Kd6 {[%clk 0:00:04.3]} 27. fxg7 {[%clk 0:00:15.3]}
27... Kc6 {[%clk 0:00:03.6]} 28. Qe4+ {[%clk 0:00:12.9]} 28... Kc7 {[%clk
0:00:03.8]} 29. Be5+ {[%clk 0:00:12.6]} 29... Bd6 {[%clk 0:00:02.8]} 30. Bxd6+
{[%clk 0:00:12.8]} 30... Rxd6 {[%clk 0:00:03.7]} 31. Rf8 {[%clk 0:00:12.5]}
31... Rdd8 {[%clk 0:00:02.1]} 32. Rxd8 {[%clk 0:00:11.9]} 32... Rxd8 {[%clk
0:00:02]} 33. Qe5+ {[%clk 0:00:12.1]} 33... Kb7 {[%clk 0:00:02.1]} 34. Qxb8+
{[%clk 0:00:11.9]} 34... Kxb8 {[%clk 0:00:03]} 35. Rf8 {[%clk 0:00:11.6]} 1-0

[Event "*** Titled Tuesday Blitz"]
[Site "Chess.com"]
[Date "2020.11.24"]
[Round "2"]
[White "JustKid"]
[Black "Dedic8"]
[Result "0-1"]
[WhiteElo "2508"]
[BlackElo "2795"]
[TimeControl "180+1"]
[EndTime "10:33:31 PST"]
[Termination "Dedic8 won by resignation"]

1. d4 {[%clk 0:03:00.9]} 1... d5 {[%clk 0:03:00.1]} 2. Bf4 {[%clk 0:03:01.4]}
2... Nf6 {[%clk 0:02:59.7]} 3. e3 {[%clk 0:03:02]} 3... c5 {[%clk 0:02:59.6]} 4.
dxc5 {[%clk 0:03:02.5]} 4... Nc6 {[%clk 0:02:57.9]} 5. Bb5 {[%clk 0:03:02.5]}
5... e6 {[%clk 0:02:56.7]} 6. b4 {[%clk 0:03:02.5]} 6... a5 {[%clk 0:02:55.7]}
7. c3 {[%clk 0:03:03]} 7... Bd7 {[%clk 0:02:53]} 8. Qb3 {[%clk 0:03:03]} 8...
Be7 {[%clk 0:02:35.6]} 9. Nf3 {[%clk 0:03:00.7]} 9... O-O {[%clk 0:02:35.8]} 10.
O-O {[%clk 0:03:00.8]} 10... Qe8 {[%clk 0:02:34.9]} 11. a4 {[%clk 0:02:41.5]}
11... b6 {[%clk 0:02:07.7]} 12. Bxc6 {[%clk 0:02:36.5]} 12... Bxc6 {[%clk
0:02:07.9]} 13. b5 {[%clk 0:02:37.1]} 13... Bb7 {[%clk 0:02:05.9]} 14. c6 {[%clk
0:02:37.4]} 14... Bc8 {[%clk 0:02:06.3]} 15. h3 {[%clk 0:02:36.3]} 15... Ne4
{[%clk 0:02:06.6]} 16. Nbd2 {[%clk 0:02:31.6]} 16... Nc5 {[%clk 0:02:06.9]} 17.
Qc2 {[%clk 0:02:28.2]} 17... f6 {[%clk 0:02:07.8]} 18. Bc7 {[%clk 0:02:04.2]}
18... Bd8 {[%clk 0:01:58]} 19. Bxd8 {[%clk 0:02:04.3]} 19... Qxd8 {[%clk
0:01:57]} 20. c4 {[%clk 0:02:04.7]} 20... e5 {[%clk 0:01:51.5]} 21. cxd5 {[%clk
0:02:03.6]} 21... Qxd5 {[%clk 0:01:52.4]} 22. e4 {[%clk 0:02:01.7]} 22... Qf7
{[%clk 0:01:50.3]} 23. Nc4 {[%clk 0:01:13.2]} 23... Qc7 {[%clk 0:01:20.5]} 24.
Rfd1 {[%clk 0:01:01.8]} 24... Be6 {[%clk 0:01:20.2]} 25. Rac1 {[%clk 0:00:56.7]}
25... Bxc4 {[%clk 0:00:31.9]} 26. Qxc4+ {[%clk 0:00:57.6]} 26... Qf7 {[%clk
0:00:27]} 27. Rd5 {[%clk 0:00:35.5]} 27... Rfd8 {[%clk 0:00:14.5]} 28. Rxd8+
{[%clk 0:00:17.1]} 28... Rxd8 {[%clk 0:00:15.2]} 29. Qxf7+ {[%clk 0:00:18]}
29... Kxf7 {[%clk 0:00:15.9]} 30. Rxc5 {[%clk 0:00:18.9]} 30... bxc5 {[%clk
0:00:15.6]} 31. b6 {[%clk 0:00:19.8]} 31... Ke6 {[%clk 0:00:07.7]} 32. c7 {[%clk
0:00:16.9]} 32... Rd1+ {[%clk 0:00:07.7]} 33. Kh2 {[%clk 0:00:16.1]} 33... Kd7
{[%clk 0:00:08.1]} 34. Nh4 {[%clk 0:00:04.9]} 34... g6 {[%clk 0:00:08.5]} 35.
Nf5 {[%clk 0:00:05.8]} 0-1

[Event "*** Titled Tuesday Blitz"]
[Site "Chess.com"]
[Date "2020.11.24"]
[Round "2"]
[White "rududuyk"]
[Black "onnoelgersma"]
[Result "1-0"]
[WhiteElo "2171"]
[BlackElo "2408"]
[TimeControl "180+1"]
[EndTime "10:33:31 PST"]
[Termination "rududuyk won by resignation"]

1. e4 {[%clk 0:03:00.9]} 1... c6 {[%clk 0:02:59.8]} 2. d4 {[%clk 0:03:00.4]}
2... d5 {[%clk 0:03:00.2]} 3. exd5 {[%clk 0:03:01.3]} 3... cxd5 {[%clk
0:03:00.1]} 4. Bd3 {[%clk 0:03:02.2]} 4... Nc6 {[%clk 0:02:39.8]} 5. c3 {[%clk
0:03:00]} 5... g6 {[%clk 0:02:24.8]} 6. Nf3 {[%clk 0:02:55.1]} 6... Qc7 {[%clk
0:02:20.8]} 7. O-O {[%clk 0:02:49.6]} 7... Bf5 {[%clk 0:02:20.6]} 8. Bxf5 {[%clk
0:02:45.8]} 8... gxf5 {[%clk 0:02:21.5]} 9. Re1 {[%clk 0:02:44.7]} 9... Nf6
{[%clk 0:02:20.7]} 10. Qd3 {[%clk 0:02:39.3]} 10... Ne4 {[%clk 0:02:07.5]} 11.
b4 {[%clk 0:02:23.6]} 11... a6 {[%clk 0:02:04.6]} 12. a4 {[%clk 0:02:23]} 12...
Rg8 {[%clk 0:02:02.6]} 13. Na3 {[%clk 0:02:16.7]} 13... e6 {[%clk 0:01:57.5]}
14. b5 {[%clk 0:02:14.3]} 14... Na5 {[%clk 0:01:55.4]} 15. Ne5 {[%clk
0:02:06.9]} 15... Bd6 {[%clk 0:01:28.6]} 16. c4 {[%clk 0:01:37.3]} 16... Bxe5
{[%clk 0:01:17.6]} 17. dxe5 {[%clk 0:01:37.2]} 17... Nxc4 {[%clk 0:01:16.5]} 18.
Nxc4 {[%clk 0:01:32]} 18... Qxc4 {[%clk 0:01:17.4]} 19. Qxc4 {[%clk 0:01:28.6]}
19... dxc4 {[%clk 0:01:18.3]} 20. Ba3 {[%clk 0:01:17.6]} 20... O-O-O {[%clk
0:01:14.6]} 21. bxa6 {[%clk 0:01:15.2]} 21... bxa6 {[%clk 0:01:15.5]} 22. Rac1
{[%clk 0:01:12.9]} 22... c3 {[%clk 0:01:12.7]} 23. f3 {[%clk 0:01:12.1]} 23...
Ng5 {[%clk 0:01:01.2]} 24. Kf2 {[%clk 0:01:07.5]} 24... Rd2+ {[%clk 0:00:59.2]}
25. Re2 {[%clk 0:01:07.6]} 25... Kb7 {[%clk 0:00:52.7]} 26. Rxc3 {[%clk
0:01:06]} 26... Rxe2+ {[%clk 0:00:52.8]} 27. Kxe2 {[%clk 0:01:06.5]} 27... h5
{[%clk 0:00:52.3]} 28. Be7 {[%clk 0:01:00.3]} 28... Nh7 {[%clk 0:00:51.5]} 29.
g3 {[%clk 0:00:56.4]} 29... Nf8 {[%clk 0:00:51.5]} 30. Rb3+ {[%clk 0:00:47.7]}
30... Ka7 {[%clk 0:00:47.5]} 31. Bc5+ {[%clk 0:00:44]} 31... Ka8 {[%clk
0:00:47]} 32. Rd3 {[%clk 0:00:37.7]} 32... Ng6 {[%clk 0:00:44.7]} 33. f4 {[%clk
0:00:37.9]} 33... Rc8 {[%clk 0:00:44.4]} 34. Be3 {[%clk 0:00:28.4]} 34... h4
{[%clk 0:00:41.6]} 35. Rd7 {[%clk 0:00:26.7]} 35... Rc2+ {[%clk 0:00:34]} 36.
Bd2 {[%clk 0:00:26.5]} 36... hxg3 {[%clk 0:00:26.8]} 37. hxg3 {[%clk 0:00:27.4]}
37... Ra2 {[%clk 0:00:22.4]} 38. a5 {[%clk 0:00:25.1]} 38... Ra3 {[%clk
0:00:21.5]} 39. Be1 {[%clk 0:00:23.7]} 39... Kb8 {[%clk 0:00:14.9]} 40. Rxf7
{[%clk 0:00:23]} 40... Kc8 {[%clk 0:00:14]} 41. Rg7 {[%clk 0:00:22.7]} 41...
Ra2+ {[%clk 0:00:13.5]} 42. Kf1 {[%clk 0:00:22.1]} 42... Nh8 {[%clk 0:00:04.7]}
43. Rg8+ {[%clk 0:00:22.2]} 1-0

[Event "*** Titled Tuesday Blitz"]
[Site "Chess.com"]
[Date "2020.11.24"]
[Round "2"]
[White "OsorioFernando"]
[Black "BAS8892"]
[Result "1-0"]
[WhiteElo "2330"]
[BlackElo "2603"]
[TimeControl "180+1"]
[EndTime "10:33:32 PST"]
[Termination "OsorioFernando won by resignation"]

1. e4 {[%clk 0:02:59.3]} 1... c5 {[%clk 0:03:00]} 2. Nc3 {[%clk 0:02:59]} 2...
Nc6 {[%clk 0:02:56.1]} 3. g3 {[%clk 0:02:58.6]} 3... g6 {[%clk 0:02:56]} 4. Bg2
{[%clk 0:02:58.4]} 4... Bg7 {[%clk 0:02:56.9]} 5. d3 {[%clk 0:02:58.7]} 5... e6
{[%clk 0:02:57.3]} 6. Be3 {[%clk 0:02:58.6]} 6... d6 {[%clk 0:02:57.5]} 7. Qd2
{[%clk 0:02:58.2]} 7... Nd4 {[%clk 0:02:57.2]} 8. Nd1 {[%clk 0:02:57.4]} 8...
Ne7 {[%clk 0:02:52.5]} 9. c3 {[%clk 0:02:56]} 9... Ndc6 {[%clk 0:02:52.3]} 10.
Bh6 {[%clk 0:02:56.2]} 10... O-O {[%clk 0:02:26.6]} 11. h4 {[%clk 0:02:55]}
11... f6 {[%clk 0:02:25.5]} 12. Bxg7 {[%clk 0:02:53.8]} 12... Kxg7 {[%clk
0:02:25.2]} 13. h5 {[%clk 0:02:54.7]} 13... g5 {[%clk 0:02:25.3]} 14. h6+ {[%clk
0:02:55.3]} 14... Kh8 {[%clk 0:02:24.9]} 15. f4 {[%clk 0:02:55]} 15... gxf4
{[%clk 0:02:18.8]} 16. gxf4 {[%clk 0:02:52.3]} 16... e5 {[%clk 0:02:15.9]} 17.
Nf2 {[%clk 0:02:29.6]} 17... d5 {[%clk 0:02:12.6]} 18. O-O-O {[%clk 0:02:27.6]}
18... d4 {[%clk 0:02:10.6]} 19. c4 {[%clk 0:02:26.3]} 19... Rb8 {[%clk
0:02:08.5]} 20. Nf3 {[%clk 0:02:14.6]} 20... b5 {[%clk 0:02:06.3]} 21. fxe5
{[%clk 0:02:03.4]} 21... fxe5 {[%clk 0:02:03.8]} 22. Rdf1 {[%clk 0:01:40.8]}
22... bxc4 {[%clk 0:01:55.3]} 23. dxc4 {[%clk 0:01:41.7]} 23... Be6 {[%clk
0:01:54.9]} 24. b3 {[%clk 0:01:39]} 24... a5 {[%clk 0:01:53.4]} 25. Nd3 {[%clk
0:01:37.6]} 25... Qd6 {[%clk 0:01:49.7]} 26. Qg5 {[%clk 0:01:33.7]} 26... Ng6
{[%clk 0:01:49.3]} 27. Nh4 {[%clk 0:01:25.5]} 27... Nce7 {[%clk 0:01:09.5]} 28.
Rxf8+ {[%clk 0:01:16.4]} 28... Rxf8 {[%clk 0:01:08.8]} 29. Rf1 {[%clk
0:01:16.5]} 29... Rxf1+ {[%clk 0:00:58.3]} 30. Bxf1 {[%clk 0:01:17.4]} 30... Bc8
{[%clk 0:00:53.8]} 31. Nf5 {[%clk 0:01:09]} 31... Bxf5 {[%clk 0:00:27]} 32. exf5
{[%clk 0:01:07.4]} 32... e4 {[%clk 0:00:22]} 33. fxg6 {[%clk 0:00:58.4]} 33...
exd3 {[%clk 0:00:21]} 34. g7+ {[%clk 0:00:46.5]} 34... Kg8 {[%clk 0:00:20.2]}
35. Bxd3 {[%clk 0:00:46.3]} 35... Qe6 {[%clk 0:00:20]} 36. Kb2 {[%clk
0:00:39.6]} 36... Qe1 {[%clk 0:00:18.9]} 37. Qxc5 {[%clk 0:00:36.1]} 37... Qd2+
{[%clk 0:00:14]} 38. Ka3 {[%clk 0:00:35.8]} 38... Qe3 {[%clk 0:00:08.4]} 39. Bf5
{[%clk 0:00:27.1]} 39... d3 {[%clk 0:00:03]} 40. Qxe3 {[%clk 0:00:25.9]} 1-0

[Event "*** Titled Tuesday Blitz"]
[Site "Chess.com"]
[Date "2020.11.24"]
[Round "2"]
[White "Mikhail_Golubev"]
[Black "shriyanasmallya"]
[Result "1-0"]
[WhiteElo "2587"]
[BlackElo "1678"]
[TimeControl "180+1"]
[EndTime "10:33:32 PST"]
[Termination "Mikhail_Golubev won by checkmate"]

1. e4 {[%clk 0:03:00.9]} 1... e5 {[%clk 0:02:58.5]} 2. Nf3 {[%clk 0:03:00]} 2...
Nc6 {[%clk 0:02:57.5]} 3. Bb5 {[%clk 0:02:57]} 3... Nge7 {[%clk 0:02:51.5]} 4.
Nc3 {[%clk 0:02:39.6]} 4... a6 {[%clk 0:02:45.5]} 5. Bc4 {[%clk 0:02:33.9]} 5...
h6 {[%clk 0:02:40]} 6. d4 {[%clk 0:02:31.2]} 6... exd4 {[%clk 0:02:38.6]} 7.
Nxd4 {[%clk 0:02:29.4]} 7... Ng6 {[%clk 0:02:11.8]} 8. O-O {[%clk 0:01:56]} 8...
d6 {[%clk 0:02:00.4]} 9. Nxc6 {[%clk 0:01:44.9]} 9... bxc6 {[%clk 0:01:57.7]}
10. f4 {[%clk 0:01:45]} 10... Be7 {[%clk 0:01:50.4]} 11. Bxf7+ {[%clk
0:01:32.1]} 11... Kxf7 {[%clk 0:01:48.8]} 12. Qh5 {[%clk 0:01:31.7]} 12... Bf6
{[%clk 0:01:16]} 13. f5 {[%clk 0:01:31.7]} 13... Bd4+ {[%clk 0:01:14.8]} 14. Kh1
{[%clk 0:01:30.1]} 14... Kg8 {[%clk 0:00:50.6]} 15. fxg6 {[%clk 0:01:24.1]}
15... Bxc3 {[%clk 0:00:45.8]} 16. bxc3 {[%clk 0:01:19]} 16... Qe7 {[%clk
0:00:39.7]} 17. Bd2 {[%clk 0:00:40.2]} 17... Be6 {[%clk 0:00:34.8]} 18. Rf2
{[%clk 0:00:34.8]} 18... Rf8 {[%clk 0:00:28.1]} 19. Raf1 {[%clk 0:00:31.7]}
19... Rxf2 {[%clk 0:00:26.8]} 20. Rxf2 {[%clk 0:00:31.5]} 20... Bxa2 {[%clk
0:00:24.9]} 21. Qf5 {[%clk 0:00:25.3]} 21... Be6 {[%clk 0:00:19.1]} 22. Qa5
{[%clk 0:00:24.7]} 22... h5 {[%clk 0:00:17]} 23. Qxa6 {[%clk 0:00:11.8]} 23...
Qe8 {[%clk 0:00:16.6]} 24. Qf1 {[%clk 0:00:08.2]} 24... Qxg6 {[%clk 0:00:14.8]}
25. Rf3 {[%clk 0:00:07.4]} 25... Kh7 {[%clk 0:00:14.5]} 26. Rg3 {[%clk
0:00:07.2]} 26... Qf6 {[%clk 0:00:13.4]} 27. Qe1 {[%clk 0:00:06.4]} 27... Qe5
{[%clk 0:00:12.6]} 28. Kg1 {[%clk 0:00:06.1]} 28... Qf6 {[%clk 0:00:12.8]} 29.
Bg5 {[%clk 0:00:05]} 29... d5 {[%clk 0:00:13.7]} 30. Bxf6 {[%clk 0:00:03.7]}
30... dxe4 {[%clk 0:00:13.3]} 31. Qd2 {[%clk 0:00:04]} 31... g6 {[%clk
0:00:12.4]} 32. Qe3 {[%clk 0:00:04.9]} 32... Rf8 {[%clk 0:00:09.6]} 33. Qg5
{[%clk 0:00:05.8]} 33... Ra8 {[%clk 0:00:08.6]} 34. Qxg6# {[%clk 0:00:04.9]} 1-0

[Event "*** Titled Tuesday Blitz"]
[Site "Chess.com"]
[Date "2020.11.24"]
[Round "2"]
[White "maximnovik"]
[Black "maciek_92"]
[Result "1-0"]
[WhiteElo "2515"]
[BlackElo "2750"]
[TimeControl "180+1"]
[EndTime "10:33:35 PST"]
[Termination "maximnovik won by resignation"]

1. d4 {[%clk 0:02:58.8]} 1... f5 {[%clk 0:02:57]} 2. g3 {[%clk 0:02:57.9]} 2...
Nf6 {[%clk 0:02:57.4]} 3. Bg2 {[%clk 0:02:58.4]} 3... g6 {[%clk 0:02:58.1]} 4.
Nf3 {[%clk 0:02:56.3]} 4... Bg7 {[%clk 0:02:58.6]} 5. O-O {[%clk 0:02:56.9]}
5... O-O {[%clk 0:02:59.2]} 6. c4 {[%clk 0:02:56]} 6... d6 {[%clk 0:02:59.2]} 7.
Qb3 {[%clk 0:02:56.6]} 7... h6 {[%clk 0:02:52]} 8. Rd1 {[%clk 0:02:56.7]} 8...
Nc6 {[%clk 0:02:50.6]} 9. d5 {[%clk 0:02:56]} 9... Ne5 {[%clk 0:02:39.1]} 10.
Nxe5 {[%clk 0:02:55.3]} 10... dxe5 {[%clk 0:02:40]} 11. Nc3 {[%clk 0:02:54.9]}
11... Kh8 {[%clk 0:02:36.9]} 12. c5 {[%clk 0:02:54.7]} 12... a6 {[%clk
0:02:34.4]} 13. d6 {[%clk 0:02:18.6]} 13... exd6 {[%clk 0:02:27.6]} 14. cxd6
{[%clk 0:02:17.7]} 14... cxd6 {[%clk 0:02:28.2]} 15. Qa3 {[%clk 0:02:02]} 15...
Ne8 {[%clk 0:02:26.2]} 16. Be3 {[%clk 0:01:36.6]} 16... Rb8 {[%clk 0:02:19]} 17.
Bc5 {[%clk 0:01:31.5]} 17... b5 {[%clk 0:02:15]} 18. Bxd6 {[%clk 0:01:28.6]}
18... Nxd6 {[%clk 0:02:15.3]} 19. Qxd6 {[%clk 0:01:18.1]} 19... Qxd6 {[%clk
0:02:15.3]} 20. Rxd6 {[%clk 0:01:18.4]} 20... Kh7 {[%clk 0:02:09.6]} 21. e4
{[%clk 0:00:52]} 21... f4 {[%clk 0:02:05.6]} 22. Nd5 {[%clk 0:00:48.7]} 22...
Rf7 {[%clk 0:01:48.5]} 23. Rc1 {[%clk 0:00:48.9]} 23... Bb7 {[%clk 0:01:45.3]}
24. Bh3 {[%clk 0:00:46.9]} 24... fxg3 {[%clk 0:01:43.7]} 25. hxg3 {[%clk
0:00:45.5]} 25... Rbf8 {[%clk 0:01:43.3]} 26. Rc2 {[%clk 0:00:45.8]} 26... h5
{[%clk 0:01:41.1]} 27. Be6 {[%clk 0:00:43.7]} 27... Bxd5 {[%clk 0:01:39.3]} 28.
exd5 {[%clk 0:00:33.4]} 28... Ra7 {[%clk 0:01:30]} 29. Rd7 {[%clk 0:00:29.7]}
29... Rxd7 {[%clk 0:01:27.6]} 30. Bxd7 {[%clk 0:00:29.7]} 30... e4 {[%clk
0:01:28.5]} 31. Be6 {[%clk 0:00:27.4]} 31... Be5 {[%clk 0:01:23.9]} 32. Re2
{[%clk 0:00:27.8]} 32... Rd8 {[%clk 0:01:15]} 33. b3 {[%clk 0:00:27]} 33... Kg7
{[%clk 0:01:15]} 34. Rxe4 {[%clk 0:00:27.4]} 34... Kf6 {[%clk 0:01:15.7]} 35. f4
{[%clk 0:00:27.7]} 35... Bc3 {[%clk 0:01:14.6]} 36. Kg2 {[%clk 0:00:27.7]} 36...
a5 {[%clk 0:01:04]} 37. Kf3 {[%clk 0:00:27.4]} 37... Bb4 {[%clk 0:01:00.9]} 38.
Re2 {[%clk 0:00:26.6]} 38... g5 {[%clk 0:00:59.5]} 39. fxg5+ {[%clk 0:00:24.9]}
39... Kxg5 {[%clk 0:01:00.4]} 40. Re5+ {[%clk 0:00:25.2]} 40... Kg6 {[%clk
0:01:00.9]} 41. Re2 {[%clk 0:00:19.5]} 41... Rf8+ {[%clk 0:01:00.6]} 42. Kg2
{[%clk 0:00:17.6]} 42... Bd6 {[%clk 0:00:55]} 43. Bd7 {[%clk 0:00:17.5]} 43...
b4 {[%clk 0:00:53.1]} 44. Re6+ {[%clk 0:00:16.7]} 44... Rf6 {[%clk 0:00:53.4]}
45. Be8+ {[%clk 0:00:17.1]} 45... Kg5 {[%clk 0:00:53.8]} 46. Rxf6 {[%clk
0:00:16.9]} 46... Kxf6 {[%clk 0:00:54.7]} 47. Bxh5 {[%clk 0:00:17]} 47... Ke5
{[%clk 0:00:54.3]} 48. Bf3 {[%clk 0:00:17.5]} 48... Kd4 {[%clk 0:00:54.8]} 49.
g4 {[%clk 0:00:17.8]} 49... Kc3 {[%clk 0:00:55.3]} 50. g5 {[%clk 0:00:16.2]}
50... Kb2 {[%clk 0:00:55.7]} 51. g6 {[%clk 0:00:15.7]} 51... Be5 {[%clk
0:00:55.2]} 52. Bd1 {[%clk 0:00:13.9]} 52... Kxa2 {[%clk 0:00:54.7]} 53. Kf3
{[%clk 0:00:14.2]} 53... Kb2 {[%clk 0:00:52.5]} 54. Ke4 {[%clk 0:00:14.6]} 54...
Bg7 {[%clk 0:00:52.6]} 55. d6 {[%clk 0:00:14.1]} 55... Kc1 {[%clk 0:00:53.2]}
56. Bg4 {[%clk 0:00:13.5]} 56... a4 {[%clk 0:00:52.1]} 57. bxa4 {[%clk
0:00:13.5]} 57... b3 {[%clk 0:00:52.4]} 58. Kd5 {[%clk 0:00:13.8]} 58... b2
{[%clk 0:00:53.3]} 59. Bf5 {[%clk 0:00:14.1]} 1-0